Cogmind - Beta 12 @@@ ROGUE MODE // 2023.09.13 @ 10:25:27 Player: DuckBoy Result: Destroyed by D-53 Grenadier with Mini Grenade Launcher Performance ------------- Evolutions (0) 0 Regions Visited (2) 400 Robots Destroyed (1) 5 Value Destroyed (53) 53 Prototype IDs (1) 20 Alien Tech Used (0) 0 Bonus (0) 0 TOTAL SCORE: 478 Bonus ------- None Cogmind --------- Core Integrity 0/250 Matter 265/300 Energy 52/100 System Corruption 0% Temperature Cool (40) Movement Core (400) Ox7 Location -10/Mines Parts ------- > --- POWER (1) -------- (None) > --- PROPULSION (2) --- (None) > --- UTILITY (2) ------ Small Storage Unit Sensor Drone Bay (20/20) > --- WEAPON (2) ------- Beam Rifle Light Assault Rifle > --- INVENTORY (8) ---- Light Ion Engine Propulsion Shielding Light Armor Plating Grenade Launcher Grenade Launcher Peak State ------------ > --- POWER ------------ Light Ion Engine > --- PROPULSION ------- Wheel Compact Wheel > --- UTILITY ---------- Small Storage Unit Sensor Drone Bay > --- WEAPON ----------- EM Pulse Gun Heavy Assault Rifle > --- INVENTORY -------- Light Ion Engine Propulsion Shielding Light Armor Plating Medium Laser Beam Rifle Light Assault Rifle Grenade Launcher Grenade Launcher [Rating: 15] Favorites ----------- Power Light Ion Engine Engine Light Ion Engine Propulsion Compact Wheel Wheel Compact Wheel Utility Small Storage Unit Device Sensor Drone Bay Storage Small Storage Unit Weapon EM Pulse Gun Energy Gun EM Pulse Gun Ballistic Gun Heavy Assault Rifle Build | -11 -10 -10 ------- Run | Jun Mat Min Slots Evolved . | . . . Power . | . . . Propulsion . | . . . Utility . | . . . Weapon . | . . . Parts Attached 11 | 6 . 5 Power 1 | 1 . . Engine 1 | 1 . . Core . | . . . Reactor . | . . . Propulsion 2 | 2 . . Treads . | . . . Leg . | . . . Wheel 2 | 2 . . Hover . | . . . Flight . | . . . Utility 2 | 1 . 1 Device 1 | . . 1 Storage 1 | 1 . . Processor . | . . . Hackware . | . . . Protection . | . . . Artifact . | . . . Weapon 6 | 2 . 4 Energy Gun 3 | 1 . 2 Energy Cannon . | . . . Ballistic Gun 3 | 1 . 2 Ballistic Cannon . | . . . Launcher . | . . . Special Weapon . | . . . Impact Weapon . | . . . Slashing Weapon . | . . . Piercing Weapon . | . . . Special Melee Weapon . | . . . Unidentified Prototypes 1 | . . 1 Parts Lost 6 | . . 6 Power 1 | . . 1 Propulsion 2 | . . 2 Utility . | . . . Weapon 3 | . . 3 Highest Loss Streak 6 | . . 6 To Critical Strikes . | . . . Average Slot Usage (%) 85 | . 85 86 Engine 12 | . 14 11 Wheel 25 | . 28 24 Device 4 | . . 7 Storage 14 | . 14 14 Energy Gun 14 | . 14 14 Ballistic Gun 14 | . 14 14 Naked Turns . | . . . Heaviest Build 27 | 11 11 27 Greatest Support 26 | 26 26 26 Greatest Overweight (x) 1 | . . 1 Average Overweight (x) . | . . . Largest Inventory Capacity 8 | 8 8 8 Average Capacity 7 | 7 8 8 Most Carried 8 | 2 5 8 Average Carried 5 | 1 4 7 Final Capacity 8 | 8 8 8 Final Carried 5 | 2 5 5 Class Distribution -------------------- 100% | Mutant Dominant Class ---------------- Mutant | -10/Materials Mutant | -10/Mines Resources | -11 -10 -10 ----------- Run | Jun Mat Min Matter Collected 281 | 204 . 77 Remotely . | . . . Salvage Created 60 | . . 60 Parts 4 | . . 4 Haulers Intercepted . | . . . Recyclers Shooed . | . . . Parts Field Recycled . | . . . Retrieved Matter . | . . . Parts Self-Destructed . | . . . Prevented . | . . . Kills | -11 -10 -10 ------- Run | Jun Mat Min Combat Hostiles Destroyed 1 | . . 1 Guns 1 | . . 1 Classes Destroyed 1 | . . 1 Demolisher 1 | . . 1 Best Kill Streak 1 | . . 1 Combat Bots Only 1 | . . 1 Max Kills in Single Turn 1 | . . 1 Gunslinging . | . . . Exploded . | . . . Melee . | . . . Uniques/NPCs Destroyed . | . . . Combat | -11 -10 -10 -------- Run | Jun Mat Min Damage Taken 1108 | . . 1108 Core 281 | . . 281 Absorbed by Shields . | . . . Core Remaining (%) 100 | 100 . . Volleys Fired 10 | . 1 9 Largest 2 | . 2 2 Hottest 79 | . 60 79 Shots Fired 20 | . 2 18 Gun 20 | . 2 18 Cannon . | . . . Launcher . | . . . Special . | . . . Kinetic 10 | . 1 9 Thermal 7 | . . 7 Explosive . | . . . Electromagnetic 3 | . 1 2 Robot Hit Streak 8 | . 1 8 Robot Miss Streak 2 | . 1 2 Penetration Max . | . . . Secondary Targets 1 | . . 1 Max Gunslinging Chain 1 | . . 1 Shots Hit Robots 14 | . 1 13 Core Hits 4 | . . 4 Critical Kills . | . . . Critical Parts Destroyed . | . . . Critical Strikes 1 | . . 1 Burn 1 | . . 1 Melee Attacks . | . . . Impact . | . . . Slashing . | . . . Piercing . | . . . Sneak Attacks . | . . . Combat Hostiles . | . . . Follow-up Attacks . | . . . Damage Inflicted 173 | . 10 163 Guns 173 | . 10 163 Cannons . | . . . Explosions . | . . . Melee . | . . . Ramming . | . . . Kinetic 85 | . 10 75 Thermal 66 | . . 66 Explosive . | . . . Electromagnetic 22 | . . 22 Impact . | . . . Slashing . | . . . Piercing . | . . . Highest Corruption . | . . . Average Corruption . | . . . Corruption Purged . | . . . Corruption Blocked . | . . . Overload Shots . | . . . Overflow Damage . | . . . Projectiles . | . . . Explosions . | . . . Melee . | . . . Knockbacks . | . . . Impact . | . . . Kinetic . | . . . Secondary . | . . . Self-Inflicted Damage . | . . . Shots . | . . . Rammed . | . . . Targets Rammed . | . . . Kicked . | . . . Crushed . | . . . Highest Temperature 52 | . 20 52 Average Temperature 21 | . 15 22 Received Heat Transfer 9 | . . 9 Siege Activations . | . . . Robots Corrupted . | . . . Combat Hostiles . | . . . Parts Fried . | . . . Impact Corruptions . | . . . Robots Melted . | . . . Combat Hostiles . | . . . Parts Melted . | . . . Heat Transferred 259 | . . 259 Parts Sabotaged . | . . . Parts Stolen . | . . . Parts Stripped . | . . . Power Chain Reactions . | . . . Missiles Intercepted . | . . . Alert | -11 -10 -10 ------- Run | Jun Mat Min Peak Influence 30 | . 7 30 Initial 2 | . . 2 Average 9 | . 2 14 Maximum Alert Level . | . . . Low Security (%) 100 | 100 100 100 Level 1 . | . . . Level 2 . | . . . Level 3 . | . . . Level 4 . | . . . Level 5 . | . . . High Security . | . . . Max Security . | . . . Squads Dispatched 1 | . 1 . Investigation . | . . . Extermination . | . . . Reinforcement 1 | . 1 . Assault . | . . . Garrison . | . . . Intercept . | . . . Searches Triggered . | . . . Construction Impeded . | . . . Haulers Reinforced . | . . . Active Scanning Responses . | . . . Cargo Convoy Interrupts . | . . . Stealth | -11 -10 -10 --------- Run | Jun Mat Min Distress Signals . | . . . Communications Jammed . | . . . Distress Signals . | . . . Times Spotted 9 | . . 9 Peak Tracking Total 3 | . 1 3 Tactical Retreats . | . . . Traps | -11 -10 -10 ------- Run | Jun Mat Min Traps Triggered . | . . . Indirectly . | . . . Trap Hack Attempts . | . . . Triggered . | . . . Disarmed . | . . . Reprogrammed . | . . . Reused . | . . . Traps Extracted . | . . . Installed . | . . . Triggered . | . . . Machines | -11 -10 -10 ---------- Run | Jun Mat Min Machines Disabled . | . . . Max in Single Turn . | . . . Machines Repaired . | . . . Machines Sabotaged . | . . . Overloaded Fab Kills . | . . . Hacking | -11 -10 -10 --------- Run | Jun Mat Min Machines Accessed 2 | . 1 1 Terminals 1 | . 1 . Fabricators . | . . . Repair Stations . | . . . Recycling Units . | . . . Scanalyzers . | . . . Garrison Access . | . . . Total Hacks 3 | . 2 1 Successful 2 | . 1 1 Failed 1 | . 1 . Catastrophic . | . . . Database Lockouts . | . . . Manual 2 | . 2 . Terminals 2 | . 2 . Fabricators . | . . . Repair Stations . | . . . Recycling Units . | . . . Scanalyzers . | . . . Garrison Access . | . . . Terminal Hacks 2 | . 1 1 Robot Schematic 1 | . 1 . Open Door 1 | . . 1 Fabricator Hacks . | . . . Repair Station Hacks . | . . . Recycling Unit Hacks . | . . . Scanalyzer . | . . . Garrison Access Hacks . | . . . Unauthorized Hacks . | . . . Terminals . | . . . Fabricators . | . . . Repair Stations . | . . . Recycling Units . | . . . Scanalyzers . | . . . Garrison Access . | . . . Data Cores Recovered . | . . . Used . | . . . Hacking Detections 1 | . 1 . Full Trace Events . | . . . Feedback Events . | . . . Feedback Blocked . | . . . Robot Schematics Acquired 1 | . 1 . Robots Built . | . . . Authchips . | . . . Time . | . . . Total Robot Build Rating . | . . . Part Schematics Acquired . | . . . Parts Built . | . . . Authchips . | . . . Time . | . . . Total Part Build Rating . | . . . Parts Repaired . | . . . Time . | . . . Parts Recycled . | . . . Recycled Matter . | . . . Retrieved Matter . | . . . Retrieved Components . | . . . Parts Scanalyzed . | . . . Part Schematics Acquired . | . . . Parts Damaged . | . . . Bothacking | -11 -10 -10 ------------ Run | Jun Mat Min Used RIF Installer . | . . . Robots Hacked . | . . . Non-combat . | . . . Combat . | . . . Robot Hacks Applied . | . . . Relay Couplers Released . | . . . Fabnet Peak Effective % . | . . . Robots Rewired . | . . . Allies Hacked . | . . . Hacks Repelled . | . . . Allies | -11 -10 -10 -------- Run | Jun Mat Min Total Allies . | . . . Largest Group . | . . . Highest-Rated Group . | . . . Highest-Rated Ally . | . . . Total Orders 1 | . . 1 RETURN 1 | . . 1 Ally Attacks . | . . . Total Damage . | . . . Kills . | . . . Allies Corrupted . | . . . Allies Melted . | . . . Intel | -11 -10 -10 ------- Run | Jun Mat Min Robot Analysis Total . | . . . Derelict Logs Recovered 1 | . . 1 Drone Launches 1 | . . 1 Drone Recoveries 1 | . . 1 Exploration | -11 -10 -10 ------------- Run | Jun Mat Min Turns Passed 315 | 41 88 186 Spaces Moved 245 | 33 92 120 Core 1 | 1 . . Treads . | . . . Legs . | . . . Wheels 244 | 32 92 120 Hover . | . . . Flight . | . . . Fastest Speed 50 | 50 90 90 Average Speed 92 | 92 90 93 Slowest Speed 105 | 100 90 105 Overloaded Moves . | . . . Propulsion Burnouts . | . . . Robots Hopped . | . . . Cave-ins Triggered . | . . . Exploration Rate (%) 21 | 3 28 32 Regions Visited 2 Branch Regions 1 Pre-discovered Areas . | . . . Known Exits Taken . | . . . Unknown Exits Taken 2 | 1 1 . Scrap Searched . | . . . Spaces Dug . | . . . Terrain Destroyed . | . . . Melee . | . . . Projectile . | . . . AOE . | . . . Terrain Rammed . | . . . Walls Destroyed . | . . . Machines Disabled . | . . . Actions | -11 -10 -10 --------- Run | Jun Mat Min Total 312 | 40 95 177 Wait 41 | . . 41 Move 243 | 32 91 120 Hop . | . . . Pick Up 7 | 2 3 2 Fast Attach 7 | 6 . 1 Attach 3 | . . 3 Detach . | . . . Swap 1 | . . 1 Drop . | . . . Fire 10 | . 1 9 Melee . | . . . Ram . | . . . Kick . | . . . Crush . | . . . Escape Stasis . | . . . Rewire . | . . . Trap . | . . . Miscellaneous . | . . . Route ------- -11/Junkyard -10/Materials -10/Mines History --------- Turn | Location | Event 8 | -11/Junkyard | Discovered new exit (range 16) 42 | -11/Junkyard | Entered Materials 121 | -10/Materials | Discovered new exit (range 11) 130 | -10/Materials | Entered Mines 132 | -10/Mines | Joined a pair of Derelicts in attacking an 0b10 outpost 198 | -10/Mines | Learned location of 1 exit from Materials 213 | -10/Mines | Found the Drone Emporium 220 | -10/Mines | Found Prototype Device 220 | -10/Mines | Identified Sensor Drone Bay 279 | -10/Mines | Assembled infested the area 284 | -10/Mines | Assisted by a Guerilla fighting off Assembled 307 | -10/Mines | Core integrity fell below 50% 312 | -10/Mines | Core integrity fell below 20% 316 | -10/Mines | Destroyed by D-53 Grenadier with Mini Grenade Launcher Last Messages --------------- 00282_ K-01 Serf collects debris. 00284_ A derelict emerges from the shadows: "You need to get out of here! I've been tracking a group of Assembled to figure out where they're coming from, and they're closing on this area, come on!" 00286_ K-01 Serf collects debris. 00288_ C-30 ARC bursts open, deploying its payload. 00288_ D-53 Grenadier unfolds itself. 00288_ Lgt. Ion Engine destroyed. 00288_ K-01 Serf destroyed. 00288_ Com. Wheel destroyed. 00292_ Wheel destroyed. 00294_ EM Pulse Gun destroyed. 00302_ D-53 Grenadier suffers critical hit (Burn). 00304_ D-53 Grenadier heat short circuits Cmb. Airjet. 00304_ Med. Laser destroyed. 00305_ The unstable cave ceiling collapses. 00306_ Hvy. Assault Rifle destroyed. 00314_ K-01 Serf collects debris. 00315_ D-53 Grenadier destroyed. 00315_ Switching to secondary target: D-53 Grenadier. Map ----- +----------------------------------------------------+ | ???????????# # #?# ?????????????? | | ???????????# ## ### #??????????????? | | ???????????# ## #??????????????? | | ???????????# ### #### #??????????????? | | ???????????# #?#####??# #??????????????? | | ???????????# ?? #??# #??????????????? | | ???????????# ?? #??# #??????????????? | | ???????????####??# #??# ###????????????? | | ?????????????????# #### ##???????????? | | ?????????????????# ## ##??????????? | | ????????????????##k # #??????????? | | ???????????????## #??????????? | | ??????????????## ##??????????? | | ??????????????# ##???????????? | | ??????????##### ###????????????? | | ?????????##""## ### ##??????????????? | | ?????????#" #X #?####???????????????? | | ?????????#" #????????????????????? | | ?????????#" #????????????????????? | | ?????????#" # ##????##?????????????? | | ?????????##""## ##?? #######???????? | | ??????????#### ## a ??????? | | ???????????## #????????????? | | ??????????## ##????????????? | | ??????????# #?????????????? | | ???????####! @ #??????????????? | | ???????# d%* #???????????????? | | ???????# % ] #???????????????? | | ???????# #### ##???????????????? | | ???????#????## ##????????????????? | | ?????????????## #?????????????????? | | ??????????????# #?????????????????? | | ??????????????#### ##?????????????????? | | ?????????????????#####??????????????????? | | ????????????????????????????????????????? | | ????????????????????????????????????????? | | ????????????????????????????????????????? | | ????????????????????????????????????????? | | ????????????????????????????????????????? | | ????????????????????????????????????????? | | ????????????????????????????????????????? | | ????????????????????????????????????????? | | ????????????????????????????????????????? | | ????????????????????????????????????????? | | ????????????????????????????????????????? | | ????????????????????????????????????????? | | ????????????????????????????????????????? | | | | | | | +----------------------------------------------------+ Best States ------------- Heat Dissipation 25 Energy Generation 10 Energy Capacity 125 Matter Stores 300 Matter Capacity 300 Sight Range 16 Terrain Scan Density 10 Evasion (%) 42 Item Schematics ----------------- None Robot Schematics ------------------ M-13 Machinist | -10/Materials | Hacked Fabricated ------------ Nothing Alien Tech Used ----------------- None Achievements -------------- None Challenges ------------ None Game ------ Seed GuidanceMassLance Manual? 0 Play Time 00:07:07 Cumulative 287.2 hours Start 2023.09.13 @ 10:15:46 End 2023.09.13 @ 10:25:27 Sessions 1 Manual Loads 0 Difficulty Rogue Special Mode None Game No. 197 Rogue 194 Adventurer 3 Explorer 0 Win Type - Total 5 Types 4/0/1/0/0/0/0/0/0 Lore% 71 Gallery% 75 Achievement% 64 Wizard Run 0 Options --------- ASCII 0 Keyboard 0 Movement Numpad Keybinds 0 Fullscreen 1 Font 18/SmallcapsGlow Map View 76x50 Tactical HUD 1 Map Filters NONE Filters NONE Steam 1 RUN: e051e3ee-ab6f-4fcf-a023-cecdacdca448